bitfinex-derivatives/quotes_ETHF0:USTF0_20250420
["timestamp","ask_amount","ask_price","bid_price","bid_amount"]
[1745148352608,2.5261,1574.0,1573.9,4.7]
[1745148353109,2.5261,1574.0,1573.9,6.928]
[1745148354011,2.5261,1574.0,1573.9,2.228]
[1745148354211,2.5261,1574.0,1573.5,2.68332653]
[1745148354507,2.5073,1573.9,1573.5,2.68332653]
[1745148354714,2.7043,1573.8,1573.5,2.68332653]
[1745148355101,2.7043,1573.8,1573.5,4.91132653]
[1745148355505,2.7043,1573.8,1573.6,2.6738]
[1745148356314,2.7043,1573.8,1573.5,2.23752653]
[1745148356616,2.526,1573.7,1573.5,2.23752653]
[1745148356806,2.666,1573.6,1573.5,5.01572653]
[1745148357213,2.526,1573.7,1573.5,5.01572653]
[1745148357415,2.526,1573.7,1573.6,2.7782]
[1745148358316,2.526,1573.7,1573.5,2.23752653]
[1745148358616,2.666,1573.6,1573.5,2.23752653]
[1745148358807,2.666,1573.6,1573.5,4.94462653]
[1745148359115,2.5073,1573.9,1573.5,9.94462653]
[1745148359414,2.5234,1573.8,1573.6,2.7071]
[1745148359609,2.5234,1573.8,1573.6,7.4071]
[1745148360215,3.2078,1574.0,1573.6,15.6149]
[1745148360424,2.5234,1574.1,1573.8,3.2078]
[1745148360719,2.5234,1574.1,1574.0,3.2078]
[1745148361113,2.5234,1574.1,1574.0,8.1429]
[1745148362120,2.5234,1574.1,1574.0,2.228]
[1745148363214,2.5234,1574.1,1573.7,4.7]
[1745148363413,2.7263,1574.0,1573.7,4.7]
[1745148363614,2.6155,1573.9,1573.7,4.7]
[1745148363811,2.7826,1573.8,1573.7,4.7]
[1745148364121,2.7826,1573.8,1573.7,6.928]
[1745148369316,2.7826,1573.8,1573.7,2.228]
[1745148371221,5.9904,1573.8,1573.7,2.228]
[1745148371418,10.9904,1573.8,1573.7,2.228]
[1745148372217,10.9904,1573.8,1573.1,13.1569324]
[1745148372418,3.2078,1573.6,1573.1,8.4569324]
[1745148372618,2.5768,1573.5,1573.1,8.4569324]
[1745148372819,2.3979,1573.4,1573.1,8.4569324]
[1745148373024,2.5768,1573.3,1573.1,8.4569324]
[1745148376221,3.2078,1573.2,1573.1,8.4569324]
[1745148376618,10.7024,1573.2,1573.0,11.65344795]
[1745148376821,7.1956,1573.1,1573.0,3.71264795]
[1745148377125,7.1956,1573.1,1572.9,16.96387087]
[1745148377320,3.2078,1573.0,1572.9,16.96387087]
[1745148377826,8.2078,1573.0,1572.9,16.96387087]
[1745148378126,10.4358,1573.0,1572.9,9.02247087]
[1745148379127,10.77946885,1573.0,1572.9,9.02247087]
[1745148379429,10.77946953,1573.0,1572.9,9.02247087]
[1745148379624,10.77946953,1573.0,1572.7,21.18659185]
[1745148379827,3.2078,1572.8,1572.7,20.02869185]
[1745148380122,7.9088,1572.8,1572.7,20.02869185]
[1745148380313,17.92050471,1572.8,1572.7,20.02869185]
[1745148381227,20.40730471,1572.8,1572.7,20.02869185]
[1745148382027,26.31530471,1572.8,1572.7,6.52004597]
[1745148382323,33.1067304,1572.8,1572.7,3.34080009]
[1745148382521,129.69052569,1572.8,1572.7,0.16155421]
[1745148382727,129.69052569,1572.8,1572.5,15.62015006]
[1745148383020,3.2078,1572.6,1572.5,15.61905006]
[1745148383221,3.54949942,1572.6,1572.5,15.61905006]
[1745148383425,10.3851,1572.6,1572.5,15.61905006]
[1745148384827,10.3851,1572.6,1572.4,29.67344507]
[1745148385029,2.4793,1572.5,1572.4,29.67344507]
[1745148387027,2.4793,1572.5,1572.4,51.08351594]
[1745148387234,0.36239998,1572.6,1572.5,11.41007087]
[1745148387526,0.36239998,1572.6,1572.5,13.92367087]
[1745148387729,0.36239998,1572.6,1572.5,23.92367087]
[1745148388333,0.36239998,1572.6,1572.5,26.15167087]
[1745148391037,0.36239998,1572.6,1572.5,16.15167087]
[1745148391236,0.36239998,1572.6,1572.5,26.15167087]
[1745148393138,0.36239998,1572.6,1572.5,23.92367087]
[1745148393434,0.36239998,1572.6,1572.5,15.81300083]
[1745148395139,0.36239998,1572.6,1572.5,18.04100083]
[1745148395539,0.36239998,1572.6,1572.5,6.68612152]
[1745148395737,5.8072,1572.7,1572.5,6.68612152]
[1745148397046,5.8072,1572.7,1572.6,2.3934]
[1745148397243,3.2078,1572.7,1572.6,2.3934]
[1745148399041,3.2078,1572.7,1572.6,6.85152152]
[1745148401653,3.2078,1572.7,1572.6,9.23582152]
[1745148402353,9.1158,1573.3,1572.6,18.93582152]
[1745148402541,9.1158,1573.3,1572.7,9.44992152]
[1745148402845,9.1158,1573.3,1572.8,5.7337]
[1745148403041,9.1158,1573.3,1572.9,2.5259]
[1745148403246,9.1158,1573.3,1573.0,4.45812152]
[1745148403447,9.1158,1573.3,1573.1,4.9918]
[1745148405155,9.1158,1573.3,1573.1,9.44992152]
[1745148406051,9.1158,1573.3,1573.1,3.45782549]
[1745148406353,5.74806779,1573.7,1573.1,8.45782549]
[1745148406354,4.10686275,1573.7,1573.1,8.45782549]
[1745148406546,4.10686275,1573.7,1573.5,3.2078]
[1745148407053,4.10686275,1573.7,1573.6,3.45782549]
[1745148408051,9.38918798,1573.8,1573.6,8.45782549]
[1745148408254,9.38918798,1573.8,1573.7,3.45782549]
[1745148408456,9.38918798,1573.8,1573.6,3.45782549]
[1745148408850,9.38918798,1573.8,1573.7,3.45782549]
[1745148409160,9.38918798,1573.8,1573.6,3.45782549]
[1745148409456,9.38918798,1573.8,1573.6,5.81362549]
[1745148409657,9.38918798,1573.8,1573.7,5.81362549]
[1745148409846,9.38918798,1573.8,1573.7,2.3558]
[1745148410051,9.38918798,1573.8,1573.7,5.81362549]
[1745148410251,9.38918798,1573.8,1573.7,8.04162549]
[1745148412662,3.2078,1573.8,1573.7,8.04162549]
[1745148414654,3.2078,1573.8,1573.7,5.68582549]
[1745148415157,3.2078,1573.8,1573.7,3.45782549]
[1745148415361,8.2078,1573.8,1573.5,0.00952653]
[1745148415561,2.4831,1573.7,1573.5,0.00952653]
[1745148415759,3.2078,1573.6,1573.5,0.00952653]
[1745148416160,5.6909,1573.6,1573.5,0.00952653]
[1745148418161,2.4831,1573.6,1573.5,3.46735202]
[1745148418362,3.2078,1573.8,1573.5,3.46735202]
[1745148418565,3.2078,1573.8,1573.6,12.98372549]
[1745148418756,3.2078,1573.8,1573.7,3.45782549]
[1745148418955,3.2078,1573.8,1573.7,5.81272549]
[1745148419157,3.2078,1573.8,1573.7,8.04072549]
[1745148420360,3.2078,1573.8,1573.7,13.04072549]
[1745148420664,6.18138798,1573.9,1573.7,13.04072549]
[1745148420858,6.18138798,1573.9,1573.8,5.76782549]
[1745148421865,8.70468798,1573.9,1573.8,5.76782549]
[1745148422766,6.18138798,1573.9,1573.8,5.76782549]
[1745148423168,6.18138798,1573.9,1573.8,10.76782549]
[1745148424367,2.4226,1574.1,1573.8,10.76782549]
[1745148424569,2.4226,1574.1,1573.9,9.13392549]
[1745148424867,2.4226,1574.1,1573.9,10.3681]
[1745148425062,2.4226,1574.1,1574.0,8.47112549]
[1745148426967,2.4226,1574.1,1574.0,10.97812549]
[1745148427160,2.4226,1574.1,1574.0,13.20612549]
[1745148427662,3.2078,1574.2,1574.0,13.20612549]
[1745148427863,3.2078,1574.2,1574.1,5.76392549]
[1745148428764,3.2078,1574.2,1574.1,3.45782549]
[1745148431068,5.7417,1574.2,1574.1,3.45782549]
[1745148431671,5.7417,1574.2,1574.0,5.052]
[1745148431970,2.5371,1574.1,1574.0,5.052]
[1745148432672,2.5371,1574.1,1574.0,7.3894]
[1745148433273,2.5371,1574.1,1574.0,9.6174]
[1745148433572,3.2078,1574.2,1574.0,9.6174]
[1745148433771,5.7449,1574.2,1574.0,9.6174]
[1745148433971,2.5371,1574.1,1574.0,9.6174]
[1745148434171,2.5371,1574.1,1574.0,7.3894]
[1745148434365,2.5371,1574.1,1573.9,7.8998]
[1745148440775,0.00952653,1574.3,1574.0,7.5919]
[1745148440977,0.00952653,1574.3,1574.1,5.6594]
[1745148441280,0.00952653,1574.3,1574.2,2.4516]
[1745148442068,0.00952653,1574.3,1574.2,4.6796]
[1745148444379,0.00952653,1574.3,1574.2,9.3656]
[1745148445779,0.00952653,1574.3,1574.2,14.3656]
[1745148447876,8.57368798,1574.8,1574.2,14.3656]
[1745148448180,8.57368798,1574.8,1574.5,3.2078]
[1745148448382,2.3923,1574.7,1574.6,9.6132]
[1745148448572,2.3923,1574.7,1574.5,3.2078]
[1745148449281,2.3923,1574.7,1574.5,5.4358]
[1745148450183,2.3923,1574.7,1574.5,3.2078]
[1745148451283,2.3923,1574.7,1574.5,10.3186]
[1745148451986,2.3923,1574.7,1574.6,2.4256]
[1745148452483,6.18138798,1574.8,1574.6,2.4256]
[1745148452685,8.72498798,1574.8,1574.7,2.3799]
[1745148453884,6.18138798,1574.8,1574.7,10.2717]
[1745148454073,6.18138798,1574.8,1574.7,12.4997]
[1745148456883,2.391,1574.9,1574.7,12.4997]
[1745148457080,6.18138798,1575.1,1574.8,2.4701]
[1745148457384,6.18138798,1575.1,1574.8,4.9915]
[1745148457572,8.68678798,1575.1,1574.8,4.9915]
[1745148457774,8.68678798,1575.1,1574.9,2.4701]
[1745148457975,2.5054,1575.0,1574.9,2.4701]
[1745148458985,2.5054,1575.0,1574.8,2.5214]
[1745148459286,2.5054,1575.0,1574.8,4.9915]
[1745148460683,2.5054,1575.0,1574.8,2.5214]
[1745148461186,4.9279,1575.0,1574.8,2.5214]
[1745148461580,2.5689,1574.9,1574.8,2.5214]
[1745148462890,2.5689,1574.9,1574.7,7.0639]
[1745148463888,2.5689,1574.9,1574.5,5.709]
[1745148464089,2.5689,1574.9,1574.6,9.4241]
[1745148465290,2.5689,1574.9,1574.7,2.4391]
[1745148466289,2.5689,1574.9,1574.7,5.6469]
[1745148466787,2.5689,1574.9,1574.8,4.8968]
[1745148467081,3.2078,1575.1,1574.8,4.8968]
[1745148467289,3.2078,1575.1,1574.9,7.1532]
[1745148467482,8.50168798,1575.2,1575.0,4.8497]
[1745148468186,6.18138798,1575.2,1575.0,4.8497]
[1745148468381,6.18138798,1575.2,1575.1,4.8968]
[1745148468685,6.18138798,1575.2,1575.1,8.1046]
[1745148468887,6.18138798,1575.2,1575.1,5.6344]
[1745148469085,8.62118798,1575.2,1575.1,5.6344]
[1745148469482,8.62118798,1575.2,1575.1,3.2078]
[1745148470088,2.4398,1575.2,1575.1,3.2078]
[1745148471380,2.4398,1575.2,1574.9,7.8908]
[1745148471583,4.716,1575.1,1574.9,7.8908]
[1745148471883,2.4018,1575.0,1574.9,7.8908]
[1745148474881,2.4018,1575.0,1574.9,3.2078]
[1745148479487,2.4018,1575.0,1574.7,4.678]
[1745148479980,2.4018,1575.0,1574.7,6.9933]
[1745148480181,2.4018,1575.0,1574.7,4.678]
[1745148480381,2.4018,1575.0,1574.6,7.8858]
[1745148482384,3.2078,1574.9,1574.6,3.2078]
[1745148482686,3.2078,1574.9,1574.4,4.68752653]
[1745148482687,2.3999,1574.8,1574.4,4.68752653]
[1745148482887,2.5039,1574.7,1574.4,0.00952653]
[1745148483084,2.3999,1574.6,1574.4,0.00952653]
[1745148486685,2.3999,1574.6,1574.4,2.29252653]
[1745148486890,6.18138798,1574.8,1574.5,4.678]
[1745148487093,8.59858798,1574.8,1574.6,2.482]
[1745148487388,8.59858798,1574.8,1574.7,2.4145]
[1745148488687,8.59858798,1574.8,1574.5,7.1594]
[1745148488889,6.18138798,1574.6,1574.5,9.5739]
[1745148489083,6.18138798,1574.6,1574.5,12.0559]
[1745148489292,8.59858798,1574.6,1574.5,12.0559]
[1745148490196,8.59858798,1574.6,1574.5,14.2839]
[1745148490387,8.59858798,1574.6,1574.5,2.228]
[1745148490587,18.52658798,1574.6,1574.4,0.00952653]
[1745148490787,2.4712,1574.5,1574.4,0.00952653]
[1745148492397,10.679,1574.5,1574.0,3.2078]
[1745148492696,10.358,1574.5,1574.0,3.2078]
[1745148492898,3.2078,1574.3,1574.0,3.2078]
[1745148493085,4.7948,1574.2,1574.0,3.2078]
[1745148493290,2.4255,1574.1,1574.0,3.2078]
[1745148494100,2.4255,1574.1,1574.0,5.5645]
[1745148494601,3.2078,1574.3,1574.0,5.5645]
[1745148494802,5.6333,1574.3,1574.1,2.3567]
[1745148495299,2.4255,1574.3,1574.2,2.373]
[1745148496301,2.4255,1574.3,1574.2,4.601]
[1745148497403,8.70650269,1574.3,1574.2,4.601]
[1745148497602,8.70650269,1574.3,1574.2,2.228]
[1745148498005,11.00720269,1574.3,1574.2,2.228]
[1745148498205,16.00720269,1574.3,1574.0,3.2078]
[1745148498410,2.2942,1574.2,1574.0,3.2078]
[1745148499211,4.5222,1574.2,1574.0,3.2078]
[1745148500108,2.2942,1574.2,1574.0,3.2078]
[1745148500317,2.5288,1574.1,1574.0,3.2078]
[1745148501606,2.5288,1574.1,1573.9,0.00952653]
[1745148501807,2.4838,1574.0,1573.9,0.00952653]
[1745148502199,4.7118,1574.0,1573.9,0.00952653]
[1745148503206,7.9196,1574.0,1573.9,0.00952653]
[1745148504110,18.8276,1574.0,1573.1,3.2078]
[1745148504400,3.2078,1573.7,1573.1,3.2078]
[1745148504602,3.2078,1573.4,1573.2,2.3581]
[1745148504808,2.3209,1573.3,1573.2,2.3581]
[1745148505309,2.3209,1573.3,1573.1,3.2078]
[1745148508007,3.55439142,1573.2,1572.7,4.675]
[1745148508209,3.2078,1573.0,1572.8,2.4041]
[1745148508411,3.2078,1573.0,1572.5,4.675]
[1745148508711,2.3609,1572.9,1572.6,7.3847]
[1745148508910,2.3609,1572.9,1572.7,2.4767]
[1745148509109,0.00952653,1573.1,1572.8,4.675]
[1745148509311,0.00952653,1573.1,1572.9,2.4767]
[1745148509502,0.00952653,1573.1,1573.0,2.5039]
[1745148509698,0.00952653,1573.1,1573.0,4.908]
[1745148510105,0.00952653,1573.1,1573.0,7.136]
[1745148512006,0.00952653,1573.1,1573.0,12.136]
[1745148512714,6.28100269,1573.6,1573.0,12.136]
[1745148513014,6.28100269,1573.6,1573.1,7.0985]
[1745148513214,8.77450269,1573.6,1573.2,2.4225]
[1745148513415,2.4935,1573.5,1573.3,2.4991]
[1745148513616,2.4935,1573.5,1573.4,7.0995]
[1745148515717,5.7013,1573.5,1573.4,4.677]
[1745148515909,5.7013,1573.5,1573.3,2.4991]
[1745148516109,2.528,1573.4,1573.3,2.4991]
[1745148516819,2.528,1573.4,1573.2,0.00952653]
[1745148517018,3.2078,1573.3,1573.2,0.00952653]
[1745148517413,5.9323,1573.3,1573.2,0.00952653]
[1745148518720,10.9323,1573.3,1572.8,7.4107]
[1745148518921,3.2078,1573.1,1572.9,2.4615]
[1745148519117,3.2078,1573.1,1572.9,5.1952]
[1745148519315,2.7245,1573.2,1572.9,5.1952]
[1745148519821,2.7245,1573.2,1573.0,2.7337]
[1745148521619,3.2078,1573.1,1572.9,2.4615]
[1745148521823,2.6145,1573.0,1572.9,2.4615]
[1745148522021,2.6145,1573.0,1572.4,4.677]
[1745148522212,3.2078,1572.8,1572.5,2.6776]
[1745148522408,2.6145,1572.7,1572.5,2.6776]
[1745148523027,2.6145,1572.7,1572.5,5.3726]
[1745148523237,2.6145,1572.7,1572.5,7.6006]
[1745148528341,3.2078,1572.8,1572.5,7.6006]
[1745148528636,5.8586,1572.8,1572.6,2.6276]
[1745148528934,2.6508,1572.7,1572.6,2.6276]
[1745148529237,3.2078,1572.8,1572.6,2.6276]
[1745148529638,3.2078,1573.0,1572.6,2.6276]
[1745148529939,2.5336,1573.1,1572.7,4.678]
[1745148530235,3.2078,1573.2,1572.8,2.5096]
[1745148530430,3.2078,1573.2,1572.9,2.6859]
[1745148530636,3.2078,1573.2,1573.0,7.1876]
[1745148530941,6.28100269,1573.3,1573.1,2.5096]
[1745148531330,6.28100269,1573.3,1573.1,7.5096]
[1745148531529,6.28100269,1573.3,1573.2,2.5096]
[1745148531740,4.17390882,1573.4,1573.2,7.5096]
[1745148531936,4.17390882,1573.4,1573.3,4.678]
[1745148532240,4.17390882,1573.4,1573.3,9.678]
[1745148532441,4.17390882,1573.4,1573.3,4.678]
[1745148535439,0.00952653,1573.4,1573.3,4.678]
[1745148537646,2.70662653,1573.4,1573.3,4.678]
[1745148540243,2.70662653,1573.4,1573.0,3.2078]
[1745148540440,3.2078,1573.3,1573.0,2.738]
[1745148540638,2.567,1573.2,1573.0,2.738]
[1745148540838,2.567,1573.2,1572.9,2.6859]
[1745148541042,2.567,1573.2,1572.9,5.4239]
[1745148541348,2.567,1573.2,1572.9,2.6859]
[1745148541536,3.2078,1573.1,1572.9,2.6859]
[1745148541733,2.5887,1573.0,1572.9,2.6859]
[1745148542144,3.2078,1573.1,1572.9,2.6859]
[1745148542344,3.2078,1573.1,1573.0,2.6762]
[1745148542845,3.2078,1573.1,1572.9,2.6859]
[1745148543044,2.5887,1573.0,1572.9,2.6859]
[1745148543253,2.5887,1573.0,1572.8,4.673]
[1745148543445,3.2078,1572.9,1572.8,4.673]
[1745148543650,2.5887,1573.0,1572.8,4.673]
[1745148543849,2.5887,1573.0,1572.9,2.6762]
[1745148544448,2.5887,1573.0,1572.9,5.2795]
[1745148545545,3.2078,1573.1,1572.9,5.2795]
[1745148545840,2.5909,1573.0,1572.9,5.2795]
[1745148546147,2.5909,1573.0,1572.9,7.5075]
[1745148548451,2.5909,1573.0,1572.9,2.228]
[1745148549155,2.5909,1573.0,1572.8,4.673]
[1745148549949,2.5909,1573.0,1572.7,2.6791]
[1745148550151,2.5909,1573.0,1572.6,7.2507]
[1745148550451,2.5909,1573.0,1572.7,2.6791]
[1745148550855,6.75528229,1573.0,1572.7,2.6791]
[1745148551356,2.6159,1572.9,1572.7,2.6791]
[1745148551958,2.6159,1572.9,1572.6,7.2507]
[1745148552158,5.8237,1572.9,1572.6,10.0151]
[1745148552552,2.6159,1572.8,1572.6,10.0151]
[1745148553259,2.6159,1572.8,1572.5,4.7492]
[1745148554155,2.6159,1572.8,1572.5,2.5212]
[1745148554658,2.6159,1572.8,1572.5,5.1249]
[1745148555055,2.6159,1572.8,1572.6,2.6037]
[1745148557068,13.65318498,1572.9,1572.6,2.6037]
[1745148557257,13.23778498,1572.9,1572.7,4.674]
[1745148557457,13.23778498,1572.9,1572.8,5.5129]
[1745148557658,13.23778498,1572.9,1572.8,8.283]
[1745148559168,10.44538498,1572.9,1572.8,8.283]
[1745148559470,16.44558498,1573.1,1572.8,8.283]
[1745148559668,2.6155,1573.0,1572.9,2.7038]
[1745148560169,2.6155,1573.0,1572.9,4.9318]
[1745148561066,13.65318498,1573.1,1572.9,9.9318]
[1745148561363,13.65318498,1573.1,1573.0,7.3778]
[1745148561571,10.44538498,1573.1,1573.0,7.3778]
[1745148561868,10.44538498,1573.1,1573.0,12.3778]
[1745148562267,10.44538498,1573.1,1573.0,14.6058]
[1745148563669,2.5527,1573.3,1573.0,14.6058]
[1745148563966,2.5527,1573.3,1573.1,2.775]
[1745148564159,2.5527,1573.3,1573.2,2.7269]
[1745148564772,2.5527,1573.3,1573.0,6.902]
[1745148565062,2.5527,1573.3,1573.0,12.4039]
[1745148565255,5.7605,1573.3,1573.0,10.1759]
[1745148565668,2.5527,1573.2,1573.0,10.1759]
[1745148565968,2.5527,1573.2,1573.1,2.5936]
[1745148566168,3.2078,1573.3,1573.1,2.5936]
[1745148566466,2.7929,1573.3,1573.1,2.5936]
[1745148566667,2.7929,1573.3,1573.2,2.6932]
[1745148567067,2.7929,1573.3,1573.2,4.9212]
[1745148567770,6.95728229,1573.3,1573.2,4.9212]
[1745148568261,6.95728229,1573.3,1573.1,2.5936]
[1745148568468,2.7929,1573.2,1573.1,2.5936]
[1745148569269,2.7929,1573.2,1573.0,10.0941]
[1745148569572,2.7929,1573.2,1573.0,12.8441]
[1745148570172,2.7929,1573.2,1573.0,15.0721]
[1745148570468,2.7929,1573.2,1573.0,12.3221]
[1745148571259,2.7929,1573.2,1573.0,12.8441]
[1745148572765,2.7929,1573.2,1573.0,10.0941]
[1745148572970,2.7929,1573.2,1573.0,7.4009]
[1745148573172,5.4119,1573.2,1573.0,4.674]
[1745148573575,5.1555,1573.1,1572.8,4.668]
[1745148573782,2.6107,1573.0,1572.8,7.2212]
[1745148574074,9.91698229,1573.3,1572.9,5.3377]
[1745148574275,2.6107,1573.2,1573.0,2.5532]
[1745148574466,2.6107,1573.2,1573.1,2.7634]
[1745148575472,2.6107,1573.2,1573.1,5.5103]
[1745148575774,13.05608498,1573.2,1573.1,5.5103]
[1745148576676,10.44538498,1573.2,1573.1,5.5103]
[1745148577471,10.44538498,1573.2,1573.1,10.1783]
[1745148579577,6.91688229,1573.3,1573.1,10.1783]
[1745148580279,6.91688229,1573.3,1573.2,5.3123]
[1745148580478,4.16438229,1573.3,1573.2,5.3123]
[1745148581181,4.16438229,1573.3,1573.2,7.5403]
[1745148581683,4.16438229,1573.3,1573.2,12.5403]
[1745148581872,6.29052922,1573.4,1573.2,13.05689499]
[1745148582178,6.29052922,1573.4,1573.3,5.8408]
[1745148582579,6.29052922,1573.4,1573.3,10.8408]
[1745148583374,0.00952653,1573.4,1573.3,10.8408]
[1745148583577,0.00952653,1573.4,1573.3,5.8408]
[1745148584984,2.79282653,1573.4,1573.3,5.8408]
[1745148585171,2.79282653,1573.4,1573.3,3.2078]
[1745148591582,2.79282653,1573.4,1573.3,5.8487]
[1745148591990,2.79282653,1573.4,1573.3,2.6409]
[1745148593091,2.79282653,1573.4,1573.2,5.4358]
[1745148594193,2.79282653,1573.4,1573.2,3.2078]
[1745148594987,2.79282653,1573.4,1573.0,7.8698]
[1745148595292,5.42392653,1573.4,1573.0,7.8698]
[1745148595687,2.7819,1573.3,1573.0,7.8698]
[1745148596094,2.7819,1573.3,1573.0,10.0978]
[1745148598197,2.7819,1573.3,1573.1,5.3004]
[1745148600301,6.29052922,1573.4,1573.1,5.3004]
[1745148600599,6.29052922,1573.4,1573.2,8.4453]
[1745148600899,6.29052922,1573.4,1573.3,7.1882]
[1745148601096,8.97572922,1573.4,1573.3,7.1882]
[1745148601298,8.97572922,1573.4,1573.3,4.662]
[1745148601489,16.69972922,1573.4,1573.3,4.662]
[1745148601694,16.69972922,1573.4,1573.2,2.228]
[1745148601910,2.6852,1573.3,1573.2,2.228]
[1745148602208,2.6852,1573.3,1573.0,3.2078]
[1745148602607,2.6852,1573.3,1573.0,5.8097]
[1745148603404,2.6852,1573.3,1573.0,8.0377]
[1745148603595,5.893,1573.3,1573.0,8.0377]
[1745148604099,2.582,1573.2,1573.0,5.4358]
[1745148604305,2.602,1573.1,1572.9,3.2078]
[1745148604499,2.582,1573.0,1572.9,3.2078]
[1745148605906,7.582,1573.0,1572.7,4.663]
[1745148606108,2.7188,1572.9,1572.7,4.663]
[1745148606308,5.5107,1572.9,1572.7,4.663]
[1745148606510,8.7185,1572.9,1572.7,4.663]
[1745148606808,2.7919,1572.8,1572.7,4.663]
[1745148607809,2.7919,1572.8,1572.6,2.5669]
[1745148608505,2.7919,1572.8,1572.5,107.0088]
[1745148608701,2.7862,1572.7,1572.5,6.891]
[1745148608901,2.5733,1572.6,1572.5,6.891]
[1745148609108,2.5733,1572.6,1572.5,2.228]
[1745148609311,5.1825,1572.6,1572.5,2.228]
[1745148610117,5.1825,1572.6,1572.3,7.8708]
[1745148610311,2.5733,1572.5,1572.3,7.8708]
[1745148611605,10.7811,1572.5,1572.2,2.228]
[1745148611910,5.7811,1572.5,1572.2,2.228]
[1745148612107,6.19047403,1572.4,1571.9,3.2078]
[1745148612310,3.2078,1572.2,1571.7,13.11874239]
[1745148612610,2.6356,1572.1,1571.7,18.43044239]
[1745148612911,5.3262,1572.1,1571.8,4.664]
[1745148613419,0.00952653,1572.6,1572.0,3.2078]
[1745148613713,5.8434,1572.5,1572.1,9.8028]
[1745148613914,2.6356,1572.4,1572.1,9.8028]
[1745148614413,2.6356,1572.4,1572.1,12.5965]
[1745148615508,2.6356,1572.4,1572.2,2.797]
[1745148616215,2.6356,1572.4,1572.2,5.025]
[1745148616914,3.2078,1572.5,1572.3,2.797]
[1745148617210,3.2078,1572.5,1572.4,2.7567]
[1745148617413,3.2078,1572.5,1572.4,7.4207]
[1745148618219,5.7998,1572.5,1572.4,9.6487]
[1745148619313,3.2078,1572.5,1572.4,9.6487]
[1745148621216,3.21732653,1572.6,1572.4,9.6487]
[1745148621517,3.21732653,1572.6,1572.5,2.5765]
[1745148621716,0.00952653,1572.6,1572.5,2.5765]
[1745148622220,0.00952653,1572.6,1572.5,4.8045]
[1745148622817,0.00952653,1572.6,1572.5,2.228]
[1745148623509,2.64162653,1572.6,1572.5,2.228]
[1745148625020,2.64162653,1572.6,1572.5,4.9481]
[1745148625314,0.00952653,1572.6,1572.5,7.732]
[1745148625515,2.62232653,1572.6,1572.5,7.732]
[1745148625717,2.62232653,1572.6,1572.5,5.0119]
[1745148625919,2.62232653,1572.6,1572.5,2.228]
[1745148626819,2.62232653,1572.6,1572.5,4.9451]
[1745148627519,2.62232653,1572.6,1572.5,2.228]
[1745148628119,0.00952653,1572.6,1572.5,4.9451]
[1745148630415,6.28100269,1573.1,1572.5,13.1529]
[1745148630617,6.28100269,1573.1,1572.8,3.2078]
[1745148630827,8.94780269,1573.1,1572.9,7.2483]
[1745148631123,8.94780269,1573.1,1572.9,9.4763]
[1745148631920,2.6668,1573.0,1572.9,6.887]
[1745148632223,3.01492362,1573.0,1572.9,6.887]
[1745148632409,3.01486971,1573.0,1572.9,6.887]
[1745148632925,2.6668,1573.0,1572.9,6.887]
[1745148633116,5.4143,1573.0,1572.9,6.887]
[1745148633416,5.4143,1573.0,1572.9,4.659]
[1745148634127,5.76197094,1573.0,1572.7,9.9777]
[1745148634320,3.2078,1572.8,1572.7,9.9777]
[1745148634521,3.55547094,1572.8,1572.7,9.9777]
[1745148635422,3.2078,1572.8,1572.7,9.9777]
[1745148635827,3.55567051,1572.8,1572.7,9.9777]
[1745148637626,3.55567051,1572.8,1572.7,7.3884]
[1745148637924,8.55567051,1572.8,1572.4,0.00952653]
[1745148638125,2.86137051,1572.7,1572.4,0.00952653]
[1745148638326,2.90687051,1572.6,1572.4,0.00952653]
[1745148638626,2.86137051,1572.5,1572.4,0.00952653]
[1745148638819,2.86132045,1572.5,1572.4,0.00952653]
[1745148641124,2.86132045,1572.5,1572.4,2.23752653]
[1745148642129,2.86132045,1572.5,1572.4,0.00952653]
[1745148642532,5.59187255,1572.5,1572.4,0.00952653]
[1745148643428,5.59187255,1572.5,1571.9,4.659]
[1745148643429,10.59187255,1572.5,1571.9,4.659]
[1745148643722,3.2078,1572.3,1571.9,4.659]
[1745148643925,8.33477255,1572.2,1571.9,4.659]
[1745148644228,2.98567255,1572.1,1571.9,6.887]
[1745148644419,0.34807255,1572.0,1571.9,6.887]
[1745148644917,2.98567255,1572.0,1571.9,6.887]
[1745148646128,2.98567255,1572.0,1571.9,2.228]
[1745148648031,2.9848655,1572.0,1571.9,2.228]
[1745148649729,2.6376,1572.0,1571.9,2.228]
[1745148649930,2.98435153,1572.0,1571.9,2.228]
[1745148651225,2.98414078,1572.0,1571.9,2.228]
[1745148651626,2.98414078,1572.0,1571.6,2.5617]
[1745148651627,3.7956038,1572.0,1571.6,2.5617]
[1745148651933,0.34653893,1571.9,1571.6,5.2477]
[1745148652129,3.55433124,1571.8,1571.5,2.228]
[1745148652324,3.2078,1571.6,1571.5,2.228]
[1745148652631,2.6087,1571.7,1571.5,2.21871793]
[1745148652822,3.2078,1571.6,1571.5,2.21871793]
[1745148653523,3.55376962,1571.6,1571.5,2.21871793]
[1745148653725,6.25226962,1571.6,1571.5,2.21871793]
[1745148654126,6.25225861,1571.6,1571.5,2.21871793]
[1745148654526,5.9063,1571.6,1571.5,2.21871793]
[1745148655228,6.25196399,1571.6,1571.5,2.11662405]
[1745148655629,8.5642,1571.6,1571.5,2.11662405]
[1745148655833,8.90986969,1571.6,1571.5,2.11662405]
[1745148656230,8.5642,1571.6,1571.5,2.11662405]
[1745148656430,8.90970581,1571.6,1571.5,2.11662405]
[1745148656632,8.5642,1571.6,1571.5,2.11662405]
[1745148660435,5.8657,1571.6,1571.5,2.11662405]
[1745148660642,3.2078,1571.6,1571.5,11.77462405]
[1745148661040,0.00952653,1571.7,1571.5,11.77462405]